[Event "Early-Titled-Tuesday-Blitz-March-12-2024"]
[Site "Chess.com"]
[Date "2024.03.12"]
[Round "10"]
[White "MightyMike_009"]
[Black "Meri-Arabidze"]
[Result "1-0"]
[WhiteElo "2862"]
[BlackElo "2715"]
[TimeControl "180+1"]
[EndTime "9:54:46 PDT"]
[Termination "MightyMike_009 won by resignation"]

1. d4 {[%clk 0:03:00.9]} 1... Nf6 {[%clk 0:02:59.6]} 2. c4 {[%clk 0:03:01]} 2...
e6 {[%clk 0:02:59.9]} 3. Nc3 {[%clk 0:03:01.3]} 3... Bb4 {[%clk 0:03:00.1]} 4.
e3 {[%clk 0:03:01.6]} 4... O-O {[%clk 0:02:59.9]} 5. Bd2 {[%clk 0:03:01.8]} 5...
d5 {[%clk 0:02:59.6]} 6. Nf3 {[%clk 0:03:01.1]} 6... a6 {[%clk 0:02:54.6]} 7. a3
{[%clk 0:02:54.7]} 7... Be7 {[%clk 0:02:54.4]} 8. Qc2 {[%clk 0:02:51.8]} 8...
dxc4 {[%clk 0:02:51.1]} 9. Bxc4 {[%clk 0:02:52.7]} 9... b5 {[%clk 0:02:51.5]}
10. Ba2 {[%clk 0:02:50.6]} 10... Bb7 {[%clk 0:02:50.8]} 11. b4 {[%clk
0:02:49.4]} 11... Nbd7 {[%clk 0:02:48.6]} 12. O-O {[%clk 0:02:48.9]} 12... Bxf3
{[%clk 0:02:38.7]} 13. gxf3 {[%clk 0:02:48.8]} 13... c6 {[%clk 0:02:36.8]} 14.
Ne4 {[%clk 0:02:39.7]} 14... Rc8 {[%clk 0:02:30.5]} 15. Nc5 {[%clk 0:02:28.7]}
15... Nxc5 {[%clk 0:02:30.2]} 16. dxc5 {[%clk 0:02:29.6]} 16... Rc7 {[%clk
0:01:55.6]} 17. Kh1 {[%clk 0:02:18.5]} 17... Rd7 {[%clk 0:01:54.2]} 18. Rad1
{[%clk 0:02:14.3]} 18... Qc7 {[%clk 0:01:41.7]} 19. Rde1 {[%clk 0:01:36.4]}
19... Rfd8 {[%clk 0:01:35.7]} 20. Bc3 {[%clk 0:01:36.3]} 20... Nd5 {[%clk
0:01:35.2]} 21. Ba1 {[%clk 0:01:27.9]} 21... Bf6 {[%clk 0:01:14.9]} 22. Bxd5
{[%clk 0:00:59.6]} 22... Rxd5 {[%clk 0:01:10.3]} 23. Bxf6 {[%clk 0:00:58]} 23...
gxf6 {[%clk 0:01:11.2]} 24. Rg1+ {[%clk 0:00:58.3]} 24... Kh8 {[%clk 0:01:00.9]}
25. f4 {[%clk 0:00:58.3]} 25... Qe7 {[%clk 0:00:38.8]} 26. Rg3 {[%clk
0:00:49.7]} 26... Rg8 {[%clk 0:00:35.2]} 27. Reg1 {[%clk 0:00:34]} 27... Rxg3
{[%clk 0:00:34.6]} 28. Rxg3 {[%clk 0:00:34.9]} 28... Qd8 {[%clk 0:00:13.4]} 29.
Kg2 {[%clk 0:00:31.1]} 29... f5 {[%clk 0:00:08.3]} 30. Qc3+ {[%clk 0:00:22.8]}
30... f6 {[%clk 0:00:08.8]} 31. Qb3 {[%clk 0:00:21.6]} 31... Qd7 {[%clk
0:00:05.3]} 32. Qb2 {[%clk 0:00:21.3]} 32... Qd8 {[%clk 0:00:05.3]} 33. Qa2
{[%clk 0:00:21.5]} 33... Qd7 {[%clk 0:00:04.8]} 34. Qa1 {[%clk 0:00:21.7]} 34...
Qd8 {[%clk 0:00:05.1]} 35. h4 {[%clk 0:00:20.3]} 35... Rd1 {[%clk 0:00:04]} 36.
Qa2 {[%clk 0:00:19]} 36... Qd5+ {[%clk 0:00:04.2]} 37. Qxd5 {[%clk 0:00:19.3]}
37... Rxd5 {[%clk 0:00:04.5]} 38. Rh3 {[%clk 0:00:09.8]} 38... Rd3 {[%clk
0:00:04.3]} 39. Rh1 {[%clk 0:00:10.2]} 39... Kg7 {[%clk 0:00:03.2]} 40. Ra1
{[%clk 0:00:09.8]} 40... Rb3 {[%clk 0:00:03.4]} 41. Rd1 {[%clk 0:00:09.2]} 41...
Rxa3 {[%clk 0:00:03.8]} 42. Rd6 {[%clk 0:00:09.5]} 42... Kg6 {[%clk 0:00:04.4]}
43. Rxe6 {[%clk 0:00:09.7]} 43... Ra4 {[%clk 0:00:03.7]} 44. Rxc6 {[%clk
0:00:09.8]} 44... Rxb4 {[%clk 0:00:02.6]} 45. Rxa6 {[%clk 0:00:10.3]} 45... Rc4
{[%clk 0:00:03.2]} 46. c6 {[%clk 0:00:10.7]} 46... b4 {[%clk 0:00:03.3]} 47. Rb6
{[%clk 0:00:11.2]} 47... h5 {[%clk 0:00:02.8]} 48. Kf3 {[%clk 0:00:11.5]} 48...
b3 {[%clk 0:00:02.9]} 49. Rxb3 {[%clk 0:00:10.8]} 49... Rxc6 {[%clk 0:00:03.3]}
50. Rb8 {[%clk 0:00:11.5]} 50... Rc1 {[%clk 0:00:03.2]} 51. Rg8+ {[%clk
0:00:11.8]} 51... Kh7 {[%clk 0:00:03.3]} 52. Ra8 {[%clk 0:00:12.1]} 52... Kg6
{[%clk 0:00:03.4]} 53. Ra7 {[%clk 0:00:11.8]} 53... Rh1 {[%clk 0:00:02.8]} 54.
Kg3 {[%clk 0:00:12.3]} 54... Rb1 {[%clk 0:00:03.3]} 55. Ra8 {[%clk 0:00:12]}
55... Rc1 {[%clk 0:00:03.1]} 56. Rg8+ {[%clk 0:00:12.2]} 56... Kh7 {[%clk
0:00:03]} 57. Rd8 {[%clk 0:00:13.1]} 57... Kg6 {[%clk 0:00:03.4]} 58. Rd7 {[%clk
0:00:13.2]} 58... Rb1 {[%clk 0:00:03.2]} 59. Rc7 {[%clk 0:00:13.3]} 59... Rg1+
{[%clk 0:00:03.2]} 60. Kh2 {[%clk 0:00:13.1]} 60... Rf1 {[%clk 0:00:03.4]} 61.
Kg2 {[%clk 0:00:13.5]} 61... Ra1 {[%clk 0:00:04]} 62. Rc2 {[%clk 0:00:13.5]}
62... Rb1 {[%clk 0:00:04.1]} 63. Rd2 {[%clk 0:00:13.9]} 63... Rc1 {[%clk
0:00:04.3]} 64. Kf3 {[%clk 0:00:13.9]} 64... Rh1 {[%clk 0:00:04.2]} 65. Kg3
{[%clk 0:00:14.4]} 65... Rg1+ {[%clk 0:00:04.7]} 66. Kh2 {[%clk 0:00:15]} 66...
Rf1 {[%clk 0:00:05]} 67. Kg2 {[%clk 0:00:15.1]} 67... Rb1 {[%clk 0:00:05.7]} 68.
f3 {[%clk 0:00:15.8]} 68... Rc1 {[%clk 0:00:05.3]} 69. e4 {[%clk 0:00:15.7]}
69... Rc4 {[%clk 0:00:04.2]} 70. Re2 {[%clk 0:00:14.8]} 70... Ra4 {[%clk
0:00:04.4]} 71. Kg3 {[%clk 0:00:14.4]} 71... Ra3 {[%clk 0:00:03.9]} 72. e5
{[%clk 0:00:14.1]} 72... fxe5 {[%clk 0:00:04.2]} 73. fxe5 {[%clk 0:00:14.4]}
73... Ra4 {[%clk 0:00:04.1]} 74. e6 {[%clk 0:00:13.9]} 74... Ra8 {[%clk
0:00:02.8]} 75. e7 {[%clk 0:00:13.4]} 75... Re8 {[%clk 0:00:01.6]} 76. Kf4
{[%clk 0:00:13.6]} 76... Kf6 {[%clk 0:00:02.3]} 77. Re5 {[%clk 0:00:13.8]} 77...
Rxe7 {[%clk 0:00:02.3]} 78. Rxe7 {[%clk 0:00:13.6]} 78... Kxe7 {[%clk
0:00:03.2]} 79. Kxf5 {[%clk 0:00:14.5]} 79... Kf7 {[%clk 0:00:02.6]} 80. Kg5
{[%clk 0:00:15.4]} 80... Ke6 {[%clk 0:00:02.5]} 81. Kxh5 {[%clk 0:00:16.3]}
81... Kf5 {[%clk 0:00:03.4]} 82. Kh6 {[%clk 0:00:16.8]} 82... Kf6 {[%clk
0:00:04]} 83. f4 {[%clk 0:00:17.1]} 83... Kf5 {[%clk 0:00:04.2]} 84. h5 {[%clk
0:00:16.7]} 84... Kf6 {[%clk 0:00:04.1]} 85. Kh7 {[%clk 0:00:16.5]} 85... Kf7
{[%clk 0:00:04.6]} 86. h6 {[%clk 0:00:16.7]} 86... Kf8 {[%clk 0:00:04.9]} 87.
Kg6 {[%clk 0:00:17.1]} 87... Kg8 {[%clk 0:00:05.5]} 88. f5 {[%clk 0:00:17.6]}
88... Kf8 {[%clk 0:00:06]} 89. f6 {[%clk 0:00:18.2]} 89... Kg8 {[%clk
0:00:06.4]} 90. f7+ {[%clk 0:00:18.7]} 90... Kf8 {[%clk 0:00:06.2]} 91. h7
{[%clk 0:00:19.3]} 1-0

[Event "Early-Titled-Tuesday-Blitz-March-12-2024"]
[Site "Chess.com"]
[Date "2024.03.12"]
[Round "11"]
[White "koncheto"]
[Black "santosalberto1987"]
[Result "0-1"]
[WhiteElo "2477"]
[BlackElo "2568"]
[TimeControl "180+1"]
[EndTime "9:58:36 PDT"]
[Termination "santosalberto1987 won by resignation"]

1. e4 {[%clk 0:03:00.9]} 1... e6 {[%clk 0:02:59.2]} 2. d4 {[%clk 0:03:01.2]}
2... d5 {[%clk 0:03:00.1]} 3. Nd2 {[%clk 0:03:02]} 3... c5 {[%clk 0:03:00.1]} 4.
exd5 {[%clk 0:03:01.8]} 4... Qxd5 {[%clk 0:03:01]} 5. Ngf3 {[%clk 0:03:02.3]}
5... cxd4 {[%clk 0:03:01.3]} 6. Bc4 {[%clk 0:03:03.2]} 6... Qd6 {[%clk
0:03:01.8]} 7. O-O {[%clk 0:03:04.1]} 7... Nf6 {[%clk 0:03:02.3]} 8. Nb3 {[%clk
0:03:04.8]} 8... Nc6 {[%clk 0:03:02.9]} 9. Nbxd4 {[%clk 0:03:05.4]} 9... Nxd4
{[%clk 0:03:03.8]} 10. Nxd4 {[%clk 0:03:06.3]} 10... a6 {[%clk 0:03:03.9]} 11.
c3 {[%clk 0:03:06]} 11... Bd7 {[%clk 0:03:03.3]} 12. Qf3 {[%clk 0:03:06]} 12...
Qc7 {[%clk 0:03:02.5]} 13. Bb3 {[%clk 0:02:57]} 13... Bd6 {[%clk 0:03:02.3]} 14.
h3 {[%clk 0:02:56.4]} 14... O-O-O {[%clk 0:03:00.7]} 15. Be3 {[%clk 0:02:53.6]}
15... Kb8 {[%clk 0:02:59.4]} 16. Rad1 {[%clk 0:02:53.2]} 16... e5 {[%clk
0:02:54.2]} 17. Nf5 {[%clk 0:02:52.8]} 17... e4 {[%clk 0:02:54.3]} 18. Nxd6
{[%clk 0:02:38.1]} 18... exf3 {[%clk 0:02:54]} 19. Nxf7 {[%clk 0:02:39]} 19...
fxg2 {[%clk 0:02:51.6]} 20. Rfe1 {[%clk 0:02:39.1]} 20... Bxh3 {[%clk
0:02:39.3]} 21. Nxh8 {[%clk 0:02:38.1]} 21... Rxh8 {[%clk 0:02:28]} 22. Rd4
{[%clk 0:02:32.5]} 22... Re8 {[%clk 0:02:21.3]} 23. Red1 {[%clk 0:02:32.8]}
23... Rxe3 {[%clk 0:02:19.1]} 24. fxe3 {[%clk 0:02:31.9]} 24... Qg3 {[%clk
0:02:17.2]} 0-1

[Event "Early-Titled-Tuesday-Blitz-March-12-2024"]
[Site "Chess.com"]
[Date "2024.03.12"]
[Round "11"]
[White "suyu28"]
[Black "ChessSwole"]
[Result "1-0"]
[WhiteElo "2871"]
[BlackElo "2713"]
[TimeControl "180+1"]
[EndTime "9:59:10 PDT"]
[Termination "suyu28 won by resignation"]

1. d4 {[%clk 0:03:00.9]} 1... Nf6 {[%clk 0:02:59.5]} 2. c4 {[%clk 0:03:01.4]}
2... b6 {[%clk 0:02:59.5]} 3. f3 {[%clk 0:02:59.4]} 3... Nc6 {[%clk 0:02:43.9]}
4. Nc3 {[%clk 0:02:59.2]} 4... e5 {[%clk 0:02:40.2]} 5. d5 {[%clk 0:02:59.4]}
5... Nd4 {[%clk 0:02:33.7]} 6. e3 {[%clk 0:02:58.3]} 6... Nf5 {[%clk 0:02:33.8]}
7. Bd3 {[%clk 0:02:58.9]} 7... g6 {[%clk 0:02:32]} 8. Nge2 {[%clk 0:02:48.7]}
8... Bc5 {[%clk 0:02:30.7]} 9. Bxf5 {[%clk 0:02:23.2]} 9... gxf5 {[%clk
0:02:30.4]} 10. Qc2 {[%clk 0:02:23.9]} 10... d6 {[%clk 0:02:29.6]} 11. b4 {[%clk
0:02:24.6]} 11... Bxb4 {[%clk 0:02:17.7]} 12. Qa4+ {[%clk 0:02:24.7]} 12... Bd7
{[%clk 0:02:17.2]} 13. Qxb4 {[%clk 0:02:25.1]} 13... Rg8 {[%clk 0:02:17.7]} 14.
O-O {[%clk 0:02:21.8]} 14... a5 {[%clk 0:02:12.1]} 15. Qb2 {[%clk 0:02:20.1]}
15... h5 {[%clk 0:02:05.9]} 16. Nb5 {[%clk 0:02:18.9]} 16... h4 {[%clk
0:02:02.8]} 17. f4 {[%clk 0:02:18.9]} 17... Nh5 {[%clk 0:01:58.1]} 18. fxe5
{[%clk 0:02:11.5]} 18... Qg5 {[%clk 0:01:57.5]} 19. Nf4 {[%clk 0:02:10.3]} 1-0

[Event "Early-Titled-Tuesday-Blitz-March-12-2024"]
[Site "Chess.com"]
[Date "2024.03.12"]
[Round "11"]
[White "Resignify"]
[Black "geminithegreat"]
[Result "1-0"]
[WhiteElo "2237"]
[BlackElo "2189"]
[TimeControl "180+1"]
[EndTime "9:59:23 PDT"]
[Termination "Resignify won by resignation"]

1. e4 {[%clk 0:02:57.1]} 1... e5 {[%clk 0:03:00]} 2. Nf3 {[%clk 0:02:56.9]} 2...
Nc6 {[%clk 0:03:00.2]} 3. Bb5 {[%clk 0:02:57.1]} 3... a6 {[%clk 0:03:00.8]} 4.
Ba4 {[%clk 0:02:57.4]} 4... Nf6 {[%clk 0:03:01]} 5. O-O {[%clk 0:02:55.3]} 5...
Be7 {[%clk 0:03:01.7]} 6. Re1 {[%clk 0:02:55.2]} 6... b5 {[%clk 0:03:01.5]} 7.
Bb3 {[%clk 0:02:55.7]} 7... d6 {[%clk 0:03:02.3]} 8. c3 {[%clk 0:02:54.9]} 8...
O-O {[%clk 0:03:02.7]} 9. d3 {[%clk 0:02:54.6]} 9... Na5 {[%clk 0:02:57.8]} 10.
Bc2 {[%clk 0:02:54.4]} 10... c5 {[%clk 0:02:58.5]} 11. Nbd2 {[%clk 0:02:53.9]}
11... Qc7 {[%clk 0:02:54.3]} 12. Nf1 {[%clk 0:02:53.9]} 12... Nc6 {[%clk
0:02:52.9]} 13. h3 {[%clk 0:02:48.4]} 13... d5 {[%clk 0:02:53]} 14. Bg5 {[%clk
0:02:46.6]} 14... Be6 {[%clk 0:02:45.1]} 15. Ne3 {[%clk 0:02:34.4]} 15... h6
{[%clk 0:02:20.9]} 16. Bxf6 {[%clk 0:02:33.4]} 16... dxe4 {[%clk 0:02:18.8]} 17.
Bxe7 {[%clk 0:02:29.6]} 17... exd3 {[%clk 0:02:06.5]} 18. Qxd3 {[%clk
0:02:20.8]} 1-0

[Event "Early-Titled-Tuesday-Blitz-March-12-2024"]
[Site "Chess.com"]
[Date "2024.03.12"]
[Round "11"]
[White "Yeritsyaan"]
[Black "PolandHussars"]
[Result "1-0"]
[WhiteElo "2647"]
[BlackElo "2547"]
[TimeControl "180+1"]
[EndTime "9:59:26 PDT"]
[Termination "Yeritsyaan won by resignation"]

1. c4 {[%clk 0:03:00.9]} 1... e5 {[%clk 0:02:59.1]} 2. Nc3 {[%clk 0:03:01.5]}
2... d6 {[%clk 0:02:57.8]} 3. g3 {[%clk 0:03:01.8]} 3... c6 {[%clk 0:02:53.7]}
4. Bg2 {[%clk 0:03:02.1]} 4... Be6 {[%clk 0:02:53.8]} 5. d3 {[%clk 0:03:01.1]}
5... Be7 {[%clk 0:02:53.4]} 6. e4 {[%clk 0:03:01.6]} 6... f5 {[%clk 0:02:53.7]}
7. exf5 {[%clk 0:03:00.2]} 7... Bxf5 {[%clk 0:02:53.7]} 8. Nge2 {[%clk
0:02:59.5]} 8... Nf6 {[%clk 0:02:53.3]} 9. O-O {[%clk 0:02:59.9]} 9... Qd7
{[%clk 0:02:49.9]} 10. d4 {[%clk 0:03:00]} 10... exd4 {[%clk 0:02:49.2]} 11.
Nxd4 {[%clk 0:03:00.1]} 11... Bh3 {[%clk 0:02:49.5]} 12. Qe2 {[%clk 0:02:40.5]}
12... Bxg2 {[%clk 0:02:48.4]} 13. Kxg2 {[%clk 0:02:41.3]} 13... O-O {[%clk
0:02:46.9]} 14. Qe6+ {[%clk 0:02:41.4]} 14... Qxe6 {[%clk 0:02:46.6]} 15. Nxe6
{[%clk 0:02:42.3]} 15... Rc8 {[%clk 0:02:41.6]} 16. Re1 {[%clk 0:02:42.1]} 16...
Bf8 {[%clk 0:02:36.4]} 17. Bf4 {[%clk 0:02:40.8]} 17... Ne8 {[%clk 0:02:25.2]}
18. Rad1 {[%clk 0:02:36.2]} 18... Be7 {[%clk 0:02:20.5]} 19. Nxg7 {[%clk
0:02:31.8]} 19... Nxg7 {[%clk 0:02:18.8]} 20. Rxe7 {[%clk 0:02:31.9]} 20... Na6
{[%clk 0:02:12.6]} 21. g4 {[%clk 0:02:22.8]} 21... Rc7 {[%clk 0:02:02.1]} 22.
Rxc7 {[%clk 0:02:21.5]} 22... Nxc7 {[%clk 0:02:03]} 23. Rxd6 {[%clk 0:02:21.2]}
23... Nce6 {[%clk 0:02:00.6]} 24. Bg3 {[%clk 0:02:21.2]} 24... Kf8 {[%clk
0:01:54.2]} 25. Rd7 {[%clk 0:02:21.1]} 25... b6 {[%clk 0:01:53.2]} 26. Ne4
{[%clk 0:02:20.7]} 26... a5 {[%clk 0:01:51.2]} 27. Bd6+ {[%clk 0:02:21]} 27...
Kg8 {[%clk 0:01:50.8]} 28. Nf6+ {[%clk 0:02:21.5]} 28... Kh8 {[%clk 0:01:51.4]}
29. Be5 {[%clk 0:02:21.6]} 29... Rd8 {[%clk 0:01:48.8]} 30. Rxd8+ {[%clk
0:02:20.5]} 30... Nxd8 {[%clk 0:01:48.8]} 31. Nh5 {[%clk 0:02:20.8]} 1-0

[Event "Early-Titled-Tuesday-Blitz-March-12-2024"]
[Site "Chess.com"]
[Date "2024.03.12"]
[Round "11"]
[White "Kostukov_Alex"]
[Black "Ati1517"]
[Result "0-1"]
[WhiteElo "2302"]
[BlackElo "2245"]
[TimeControl "180+1"]
[EndTime "9:59:36 PDT"]
[Termination "Ati1517 won by resignation"]

1. g3 {[%clk 0:02:58.8]} 1... d5 {[%clk 0:02:59.3]} 2. Bg2 {[%clk 0:02:59.2]}
2... Nf6 {[%clk 0:03:00]} 3. d3 {[%clk 0:02:59.7]} 3... e5 {[%clk 0:03:00.3]} 4.
e4 {[%clk 0:03:00]} 4... dxe4 {[%clk 0:02:59.9]} 5. dxe4 {[%clk 0:03:00.9]} 5...
Qxd1+ {[%clk 0:02:58.3]} 6. Kxd1 {[%clk 0:03:01.8]} 6... Nc6 {[%clk 0:02:57.5]}
7. f3 {[%clk 0:03:02]} 7... Be6 {[%clk 0:02:58]} 8. Be3 {[%clk 0:03:01.7]} 8...
O-O-O+ {[%clk 0:02:58.5]} 9. Nd2 {[%clk 0:03:02.6]} 9... Nd4 {[%clk 0:02:56.8]}
10. c3 {[%clk 0:03:02.1]} 10... Nc6 {[%clk 0:02:55.9]} 11. Bh3 {[%clk 0:03:03]}
11... b6 {[%clk 0:02:50.3]} 12. Bxe6+ {[%clk 0:03:01.3]} 12... fxe6 {[%clk
0:02:49.8]} 13. Ke2 {[%clk 0:03:01.8]} 13... Bd6 {[%clk 0:02:46.9]} 14. Nh3
{[%clk 0:03:01.8]} 14... h6 {[%clk 0:02:46]} 15. Nf2 {[%clk 0:03:01.8]} 15... g5
{[%clk 0:02:45.4]} 16. b4 {[%clk 0:02:59.1]} 16... g4 {[%clk 0:02:43.4]} 17.
Nxg4 {[%clk 0:02:56.7]} 17... Nxg4 {[%clk 0:02:43.1]} 18. fxg4 {[%clk
0:02:57.6]} 18... Rdg8 {[%clk 0:02:40.1]} 19. h3 {[%clk 0:02:57.8]} 19... h5
{[%clk 0:02:40.1]} 20. g5 {[%clk 0:02:57]} 20... h4 {[%clk 0:02:39.8]} 21. gxh4
{[%clk 0:02:52.4]} 21... Rxh4 {[%clk 0:02:38.9]} 22. Rag1 {[%clk 0:02:52.9]}
22... Ne7 {[%clk 0:02:38.9]} 23. Nf3 {[%clk 0:02:50.6]} 23... Rxe4 {[%clk
0:02:37.9]} 24. Kd3 {[%clk 0:02:50.6]} 24... Rxe3+ {[%clk 0:02:32.1]} 25. Kxe3
{[%clk 0:02:50.6]} 25... Nd5+ {[%clk 0:02:32.3]} 26. Kd2 {[%clk 0:02:46.8]}
26... e4 {[%clk 0:02:31.6]} 27. Nd4 {[%clk 0:02:41.5]} 27... Bf4+ {[%clk
0:02:28.2]} 28. Kc2 {[%clk 0:02:40.1]} 28... e5 {[%clk 0:02:28.1]} 29. Ne6
{[%clk 0:02:38]} 29... Rg6 {[%clk 0:02:26.3]} 30. Nxf4 {[%clk 0:02:37.4]} 30...
exf4 {[%clk 0:02:26.5]} 31. h4 {[%clk 0:02:36.7]} 31... f3 {[%clk 0:02:26.6]}
32. h5 {[%clk 0:02:32.2]} 32... Rg8 {[%clk 0:02:25.6]} 33. h6 {[%clk 0:02:16.7]}
33... f2 {[%clk 0:02:21.2]} 34. Rf1 {[%clk 0:02:10.4]} 34... Ne3+ {[%clk
0:02:20.2]} 35. Kd2 {[%clk 0:02:10.4]} 35... Nxf1+ {[%clk 0:02:20.2]} 36. Rxf1
{[%clk 0:02:09.9]} 36... Rxg5 {[%clk 0:02:19.5]} 37. Rh1 {[%clk 0:02:08.8]}
37... Rg1 {[%clk 0:02:17.3]} 0-1

[Event "Early-Titled-Tuesday-Blitz-March-12-2024"]
[Site "Chess.com"]
[Date "2024.03.12"]
[Round "11"]
[White "TregubovP"]
[Black "LileKoridze"]
[Result "1-0"]
[WhiteElo "2685"]
[BlackElo "2466"]
[TimeControl "180+1"]
[EndTime "10:00:55 PDT"]
[Termination "TregubovP won by resignation"]

1. e4 {[%clk 0:02:54]} 1... c5 {[%clk 0:02:59.8]} 2. Nf3 {[%clk 0:02:53.1]} 2...
d6 {[%clk 0:03:00.3]} 3. d4 {[%clk 0:02:52.6]} 3... cxd4 {[%clk 0:03:00.7]} 4.
Qxd4 {[%clk 0:02:53.1]} 4... a6 {[%clk 0:03:00.2]} 5. Nc3 {[%clk 0:02:52.3]}
5... Nc6 {[%clk 0:03:00.8]} 6. Qd3 {[%clk 0:02:52.2]} 6... Nf6 {[%clk
0:03:00.7]} 7. Be2 {[%clk 0:02:52.5]} 7... g6 {[%clk 0:03:00.6]} 8. O-O {[%clk
0:02:52.3]} 8... Bg7 {[%clk 0:03:01.1]} 9. Nd5 {[%clk 0:02:52.8]} 9... O-O
{[%clk 0:03:01.2]} 10. c3 {[%clk 0:02:53.3]} 10... b5 {[%clk 0:03:00]} 11. Bg5
{[%clk 0:02:52.4]} 11... Nxd5 {[%clk 0:02:59.2]} 12. exd5 {[%clk 0:02:52.6]}
12... Ne5 {[%clk 0:02:59.4]} 13. Nxe5 {[%clk 0:02:52.8]} 13... Bxe5 {[%clk
0:03:00.3]} 14. Rfe1 {[%clk 0:02:39.6]} 14... Bb7 {[%clk 0:02:59]} 15. f4 {[%clk
0:02:33.9]} 15... Bg7 {[%clk 0:02:57.2]} 16. Bf3 {[%clk 0:02:33.8]} 16... Re8
{[%clk 0:02:55.9]} 17. Re2 {[%clk 0:02:32]} 17... Qb6+ {[%clk 0:02:52.8]} 18.
Kh1 {[%clk 0:02:31.5]} 18... e6 {[%clk 0:02:52.7]} 19. dxe6 {[%clk 0:02:25.9]}
19... fxe6 {[%clk 0:02:53.1]} 20. Bxb7 {[%clk 0:02:21.8]} 20... Qxb7 {[%clk
0:02:52]} 21. Qxd6 {[%clk 0:02:20]} 21... h6 {[%clk 0:02:51.5]} 22. Bh4 {[%clk
0:02:16.4]} 22... Qf7 {[%clk 0:02:51.6]} 23. Rae1 {[%clk 0:02:13.9]} 23... Bf8
{[%clk 0:02:41.4]} 24. Qc6 {[%clk 0:01:59.1]} 24... Qxf4 {[%clk 0:02:40.3]} 25.
Bg3 {[%clk 0:01:59.1]} 25... Qf7 {[%clk 0:02:37.8]} 26. Rxe6 {[%clk 0:01:56.1]}
26... Red8 {[%clk 0:02:29.7]} 27. Rxg6+ {[%clk 0:01:54.7]} 27... Bg7 {[%clk
0:02:30]} 28. h3 {[%clk 0:01:18.2]} 28... Kh7 {[%clk 0:02:28.3]} 29. Rge6 {[%clk
0:01:15.9]} 29... Qf5 {[%clk 0:01:59.2]} 30. Re7 {[%clk 0:01:10.5]} 30... Qg5
{[%clk 0:01:55.4]} 31. Qe4+ {[%clk 0:01:04.1]} 31... Kg8 {[%clk 0:01:54.3]} 32.
Bh4 {[%clk 0:01:01.4]} 32... Qc5 {[%clk 0:01:48.9]} 33. Qg6 {[%clk 0:00:56.8]}
1-0

[Event "Early-Titled-Tuesday-Blitz-March-12-2024"]
[Site "Chess.com"]
[Date "2024.03.12"]
[Round "11"]
[White "RebelJohnny"]
[Black "CarlosjPineror"]
[Result "1-0"]
[WhiteElo "2545"]
[BlackElo "2610"]
[TimeControl "180+1"]
[EndTime "10:01:47 PDT"]
[Termination "RebelJohnny won by checkmate"]

1. e4 {[%clk 0:03:00.9]} 1... c5 {[%clk 0:02:59.9]} 2. Nf3 {[%clk 0:03:00.6]}
2... e6 {[%clk 0:03:00.2]} 3. d4 {[%clk 0:03:00.5]} 3... cxd4 {[%clk 0:03:01.1]}
4. Nxd4 {[%clk 0:03:01.2]} 4... a6 {[%clk 0:03:01.7]} 5. Bd3 {[%clk 0:03:00.9]}
5... Qc7 {[%clk 0:03:01.9]} 6. Qe2 {[%clk 0:02:58.6]} 6... d6 {[%clk 0:03:02]}
7. O-O {[%clk 0:02:56.4]} 7... Nf6 {[%clk 0:03:00.8]} 8. f4 {[%clk 0:02:53.9]}
8... Nbd7 {[%clk 0:02:59.3]} 9. c4 {[%clk 0:02:52.4]} 9... b6 {[%clk 0:02:57.3]}
10. b3 {[%clk 0:02:51.3]} 10... Bb7 {[%clk 0:02:57.5]} 11. Nc3 {[%clk
0:02:50.4]} 11... Be7 {[%clk 0:02:58]} 12. Bb2 {[%clk 0:02:50.3]} 12... Rc8
{[%clk 0:02:57]} 13. Rae1 {[%clk 0:02:49]} 13... g6 {[%clk 0:02:52.4]} 14. Kh1
{[%clk 0:02:45.2]} 14... h5 {[%clk 0:02:50.9]} 15. Nf3 {[%clk 0:01:55.7]} 15...
h4 {[%clk 0:02:44]} 16. Ng5 {[%clk 0:01:25.3]} 16... Nc5 {[%clk 0:02:29.6]} 17.
Bb1 {[%clk 0:01:15.2]} 17... Nh5 {[%clk 0:02:29.8]} 18. Nd5 {[%clk 0:01:08.1]}
18... exd5 {[%clk 0:02:30]} 19. Bxh8 {[%clk 0:01:07.4]} 19... Nxf4 {[%clk
0:01:18.3]} 20. Rxf4 {[%clk 0:00:56.9]} 20... Bxg5 {[%clk 0:01:16.6]} 21. exd5+
{[%clk 0:00:51.8]} 21... Kf8 {[%clk 0:01:13.6]} 22. Rff1 {[%clk 0:00:39.4]}
22... Kg8 {[%clk 0:01:13.2]} 23. Ba1 {[%clk 0:00:31.8]} 23... Rf8 {[%clk
0:01:13.3]} 24. Bxg6 {[%clk 0:00:26]} 24... fxg6 {[%clk 0:01:11.6]} 25. Rxf8+
{[%clk 0:00:25.7]} 25... Kxf8 {[%clk 0:01:12.5]} 26. Qe8# {[%clk 0:00:26]} 1-0

[Event "Early-Titled-Tuesday-Blitz-March-12-2024"]
[Site "Chess.com"]
[Date "2024.03.12"]
[Round "11"]
[White "BogdanDeac"]
[Black "Yan_Dyomin2010"]
[Result "1-0"]
[WhiteElo "3036"]
[BlackElo "2742"]
[TimeControl "180+1"]
[EndTime "10:01:59 PDT"]
[Termination "BogdanDeac won by resignation"]

1. e4 {[%clk 0:03:00.9]} 1... c5 {[%clk 0:02:59.6]} 2. h3 {[%clk 0:02:59.5]}
2... Nc6 {[%clk 0:02:58.5]} 3. Bb5 {[%clk 0:02:58.9]} 3... Nd4 {[%clk
0:02:58.4]} 4. Be2 {[%clk 0:02:59.1]} 4... g6 {[%clk 0:02:55.8]} 5. c3 {[%clk
0:02:58]} 5... Nxe2 {[%clk 0:02:56.2]} 6. Qxe2 {[%clk 0:02:58.9]} 6... Bg7
{[%clk 0:02:56.5]} 7. Nf3 {[%clk 0:02:59.4]} 7... Nf6 {[%clk 0:02:56]} 8. O-O
{[%clk 0:02:57.8]} 8... O-O {[%clk 0:02:55.7]} 9. Re1 {[%clk 0:02:58.2]} 9... d6
{[%clk 0:02:53.4]} 10. d4 {[%clk 0:02:58.2]} 10... cxd4 {[%clk 0:02:53.4]} 11.
cxd4 {[%clk 0:02:59.1]} 11... d5 {[%clk 0:02:49.1]} 12. e5 {[%clk 0:02:59.1]}
12... Ne4 {[%clk 0:02:49.6]} 13. Ng5 {[%clk 0:02:59.4]} 13... Bf5 {[%clk
0:02:43.3]} 14. Nxe4 {[%clk 0:02:57.2]} 14... dxe4 {[%clk 0:02:38.1]} 15. Rd1
{[%clk 0:02:52.5]} 15... Qb6 {[%clk 0:02:25.5]} 16. Nc3 {[%clk 0:02:51.1]} 16...
Rfd8 {[%clk 0:02:24.5]} 17. Be3 {[%clk 0:02:51.3]} 17... Qa5 {[%clk 0:02:17.1]}
18. Qb5 {[%clk 0:02:48.9]} 18... Qc7 {[%clk 0:02:03]} 19. Rac1 {[%clk
0:02:47.1]} 19... a6 {[%clk 0:02:02.2]} 20. Qb3 {[%clk 0:02:44]} 20... Qd7
{[%clk 0:01:30.2]} 21. Kh2 {[%clk 0:02:43.6]} 21... h5 {[%clk 0:01:29.5]} 22.
Na4 {[%clk 0:02:41.8]} 22... Be6 {[%clk 0:01:29]} 23. Qa3 {[%clk 0:02:38.7]}
23... Qe8 {[%clk 0:01:12.3]} 24. Nb6 {[%clk 0:02:33.1]} 24... Rab8 {[%clk
0:01:12.2]} 25. Qa5 {[%clk 0:02:33.3]} 25... Kh7 {[%clk 0:00:57.8]} 26. Rc5
{[%clk 0:02:30.6]} 26... f6 {[%clk 0:00:51.2]} 27. b3 {[%clk 0:02:18.8]} 27...
fxe5 {[%clk 0:00:47.3]} 28. d5 {[%clk 0:02:18.6]} 28... Bf5 {[%clk 0:00:44.8]}
29. Rc7 {[%clk 0:02:17.1]} 29... Kg8 {[%clk 0:00:40.1]} 30. a4 {[%clk
0:01:48.2]} 30... Bf6 {[%clk 0:00:37]} 31. Nc4 {[%clk 0:01:47.4]} 31... Rbc8
{[%clk 0:00:33.7]} 32. Rxb7 {[%clk 0:01:44.1]} 32... Rd7 {[%clk 0:00:29.3]} 33.
Rxd7 {[%clk 0:01:43.5]} 33... Bxd7 {[%clk 0:00:27.7]} 34. d6 {[%clk 0:01:38]}
34... Be6 {[%clk 0:00:23.9]} 35. d7 {[%clk 0:01:32.7]} 35... Bxd7 {[%clk
0:00:22.5]} 36. Qd5+ {[%clk 0:01:32.2]} 1-0